Cogmind - Beta 15 @@@ ROGUE MODE // 2025.05.16 @ 15:36:54 Player: Darcyisverycute Result: Destroyed by 4H-ZRC(R) with Subdweller Beam Cannon Performance ------------- Evolutions (0) 0 Regions Visited (2) 400 Robots Destroyed (29) 145 Value Destroyed (612) 612 Prototype IDs (11) 220 Alien Tech Used (0) 0 Bonus (0) 0 TOTAL SCORE: 1377 Bonus ------- None Cogmind --------- Core Integrity 0/250 Matter 273/300 Energy 179/200 System Corruption 0% Temperature Cool (38) Movement Treading (160) Location -10/Subcaves Parts ------- > --- POWER (1) -------- Subdweller Power Source > --- PROPULSION (2) --- Spiked Treads > --- UTILITY (2) ------ Subdweller Optics > --- WEAPON (2) ------- Subdweller Beam Cannon Subdweller Machine Gun > --- INVENTORY (5) ---- Compact Wheel Subdweller Beam Cannon Light Assault Rifle Subdweller Machine Gun Barrage Gun Peak State ------------ > --- POWER ------------ Subdweller Power Source > --- PROPULSION ------- Spiked Treads Wheel > --- UTILITY ---------- Scrap Shield > --- WEAPON ----------- Subdweller Beam Cannon Subdweller Machine Gun > --- INVENTORY -------- Compact Wheel Beam Cannon Subdweller Beam Cannon Light Assault Rifle Mining Laser [Rating: 13] Favorites ----------- Power Subdweller Power Source Engine Subdweller Power Source Propulsion Light Treads Treads Light Treads Wheel Wheel Utility Seismic Detector Device Seismic Detector Storage Huge Storage Unit Protection Scrap Shield Weapon Light Assault Rifle Energy Gun EM Pulse Gun Energy Cannon Subdweller Beam Cannon Ballistic Gun Light Assault Rifle Special Weapon Mining Laser Build | -11 -10 -10 ------- Run | Yrd Mat Sub Slots Evolved . | . . . Power . | . . . Propulsion . | . . . Utility . | . . . Weapon . | . . . Parts Attached 26 | 8 5 13 Power 4 | 1 1 2 Engine 4 | 1 1 2 Core . | . . . Reactor . | . . . Propulsion 7 | 2 2 3 Treads 4 | 2 1 1 Leg . | . . . Wheel 3 | . 1 2 Hover . | . . . Flight . | . . . Utility 5 | 2 1 2 Device 2 | 1 . 1 Storage 2 | 1 1 . Processor . | . . . Hackware . | . . . Protection 1 | . . 1 Artifact . | . . . Weapon 10 | 3 1 6 Energy Gun 1 | 1 . . Energy Cannon 2 | . . 2 Ballistic Gun 6 | 2 . 4 Ballistic Cannon . | . . . Launcher . | . . . Special Weapon 1 | . 1 . Impact Weapon . | . . . Slashing Weapon . | . . . Piercing Weapon . | . . . Special Melee Weapon . | . . . Unidentified Prototypes . | . . . Parts Lost 8 | . 3 5 Power 2 | . 1 1 Propulsion 3 | . 1 2 Utility 1 | . . 1 Weapon 2 | . 1 1 Highest Loss Streak 3 | . 3 3 To Critical Strikes . | . . . Average Backups 6 | 2 8 5 Power . | . . . Propulsion 1 | 1 1 . Utility . | . 1 . Weapon 3 | . 3 4 Tool/Special . | . . . Unused Backups 7 | . 1 6 Power . | . . . Propulsion 1 | . 1 . Utility 2 | . . 2 Weapon 4 | . . 4 Tool/Special . | . . . Average Slot Usage (%) 89 | . 98 83 Engine 13 | . 14 13 Treads 15 | . 26 9 Wheel 11 | . 1 16 Device 7 | . 14 3 Storage 6 | . 14 2 Protection 5 | . . 8 Energy Cannon 7 | . . 11 Ballistic Gun 18 | . 23 15 Special Weapon 1 | . 2 . Peak Build Rating 13 | 7 8 13 Average Rating 9 | 5 7 10 On Entrance 4 | . 7 7 Naked Turns . | . . . Heaviest Build 88 | 13 88 88 Greatest Support 40 | 40 40 20 Greatest Overweight (x) 29 | . 5 29 Average Overweight (x) 1 | . 1 2 Largest Inventory Capacity 25 | 8 25 25 Average Capacity 11 | 7 15 8 Most Carried 10 | 6 10 8 Average Carried 6 | 2 8 5 Final Capacity 25 | 8 25 5 Final Carried 8 | 6 8 5 Class Distribution -------------------- 60% | Mutant 36% | Subdweller-Mutant Dominant Class ---------------- Mutant | -10/Materials Subdweller-Mutant | -10/Subcaves Resources | -11 -10 -10 ----------- Run | Yrd Mat Sub Matter Collected 644 | 310 138 196 Remotely . | . . . Salvage Created 905 | 106 492 307 Parts 54 | 9 29 16 Haulers Intercepted 1 | . 1 . Recyclers Shooed 1 | 1 . . Parts Field Recycled . | . . . Retrieved Matter . | . . . Parts Self-Destructed . | . . . Prevented . | . . . Kills | -11 -10 -10 ------- Run | Yrd Mat Sub Combat Hostiles Destroyed 18 | . 10 8 Guns 15 | . 10 5 Cannons 3 | . . 3 Classes Destroyed 8 | 2 5 1 Worker 3 | . 3 . Tunneler 3 | 3 . . Hauler 1 | . 1 . Recycler 2 | 1 1 . Watcher 2 | . 2 . Swarmer 6 | . 6 . Grunt 4 | . 4 . Subdweller 8 | . . 8 Best Kill Streak 4 | 4 4 2 Combat Bots Only 4 | . 4 2 Max Kills in Single Turn 2 | 1 2 1 Gunslinging . | . . . Exploded . | . . . Melee . | . . . Uniques/NPCs Destroyed . | . . . Combat | -11 -10 -10 -------- Run | Yrd Mat Sub Hostile Shots Fired 107 | . 57 50 Missed 23 | . 9 14 Hits 84 | . 48 36 Projectile 84 | . 48 36 Critical Strikes 1 | . 1 . Damage Taken 1614 | . 663 951 Core 265 | . 125 140 Absorbed by Shields . | . . . Core Remaining (%) 100 | 100 . . Volleys Fired 130 | 15 63 52 Largest 2 | 2 2 2 Hottest 110 | 40 100 110 Shots Fired 246 | 30 122 94 Gun 201 | 30 118 53 Cannon 39 | . . 39 Launcher . | . . . Special 6 | . 4 2 Kinetic 201 | 30 118 53 Thermal 45 | . 4 41 Explosive . | . . . Electromagnetic . | . . . Robot Hit Streak 35 | 7 23 35 Robot Miss Streak 3 | 2 3 2 Penetration Max . | . . . Secondary Targets . | . . . Shots Hit Robots 172 | 21 88 63 Core Hits 59 | 8 36 15 Critical Kills . | . . . Critical Parts Destroyed 2 | 1 1 . Critical Strikes 6 | 1 1 4 Destroy 6 | 1 1 4 Melee Attacks . | . . . Impact . | . . . Slashing . | . . . Piercing . | . . . Sneak Attacks . | . . . Combat Hostiles . | . . . Follow-up Attacks . | . . . Damage Inflicted 2044 | 171 730 1143 Guns 1459 | 171 730 558 Cannons 585 | . . 585 Explosions . | . . . Melee . | . . . Ramming . | . . . Kinetic 1459 | 171 730 558 Thermal 585 | . . 585 Explosive . | . . . Electromagnetic . | . . . Impact . | . . . Slashing . | . . . Piercing . | . . . Highest Corruption . | . . . Average Corruption . | . . . Corruption Purged . | . . . Corruption Blocked . | . . . Overload Shots . | . . . Overflow Damage . | . . . Projectiles . | . . . Explosions . | . . . Melee . | . . . Knockbacks . | . . . Impact . | . . . Kinetic . | . . . Secondary . | . . . Self-Inflicted Damage . | . . . Shots . | . . . Rammed . | . . . Targets Rammed . | . . . Kicked . | . . . Crushed . | . . . Highest Temperature 40 | . 40 31 Average Temperature 15 | . 14 22 Received Heat Transfer 393 | . 234 159 Siege Activations . | . . . Martial Activations . | . . . Shielding Activations . | . . . Robots Disrupted . | . . . Combat Hostiles . | . . . Robots Corrupted . | . . . Combat Hostiles . | . . . Parts Fried . | . . . Impact Corruptions . | . . . Robots Melted . | . . . Combat Hostiles . | . . . Parts Melted 5 | . . 5 Heat Transferred 814 | . . 814 Parts Sabotaged . | . . . Parts Stolen . | . . . Parts Stripped . | . . . Power Chain Reactions . | . . . Alert | -11 -10 -10 ------- Run | Yrd Mat Sub Maximum Alert Level . | . . . Low Security (%) 100 | 100 100 . Level 1 . | . . . Level 2 . | . . . Level 3 . | . . . Level 4 . | . . . Level 5 . | . . . High Security . | . . . Max Security . | . . . Peak Influence 118 | 10 118 . Initial . | . . . Average 26 | . 30 . Influence Increases 309 | 20 289 . Destroy 0b10 Robot/C 200 | . 200 . Destroy 0b10 Robot/NC 55 | 20 35 . Destroy Leader 46 | . 46 . Successful Hack 6 | . 6 . Destroy Structure 2 | . 2 . Influence Decreases 309 | 20 289 . Time Decay 279 | 20 259 . Lost Part 30 | . 30 . Squads Dispatched 1 | . 1 . Investigation 1 | . 1 . Extermination . | . . . Reinforcement . | . . . Assault . | . . . Garrison . | . . . Intercept . | . . . Searches Triggered . | . . . Construction Impeded . | . . . Haulers Reinforced . | . . . Active Scanning Responses . | . . . Cargo Convoy Interrupts . | . . . Stealth | -11 -10 -10 --------- Run | Yrd Mat Sub Distress Signals . | . . . Communications Jammed . | . . . Distress Signals . | . . . Times Spotted 23 | . 14 9 Peak Tracking Total 6 | . 6 2 Tactical Retreats . | . . . Traps | -11 -10 -10 ------- Run | Yrd Mat Sub Traps Triggered 5 | . 2 3 Indirectly . | . . . Trap Hack Attempts . | . . . Triggered . | . . . Disarmed . | . . . Reprogrammed . | . . . Reused . | . . . Traps Extracted . | . . . Installed . | . . . Triggered . | . . . Machines | -11 -10 -10 ---------- Run | Yrd Mat Sub Machines Disabled 1 | . . 1 Max in Single Turn 1 | . . 1 Machines Repaired . | . . . Machines Dismantled . | . . . Machines Sabotaged . | . . . Overloaded Fab Kills . | . . . Hacking | -11 -10 -10 --------- Run | Yrd Mat Sub Machines Accessed 3 | . 2 1 Terminals 2 | . 2 . Fabricators . | . . . Repair Stations . | . . . Recycling Units . | . . . Scanalyzers . | . . . Garrison Access . | . . . Total Hacks 6 | . 5 1 Successful 2 | . 1 1 Failed 4 | . 4 . Catastrophic 2 | . 2 . Database Lockouts . | . . . Manual 6 | . 6 . Terminals 5 | . 5 . Fabricators . | . . . Repair Stations . | . . . Recycling Units . | . . . Scanalyzers . | . . . Garrison Access . | . . . Terminal Hacks 2 | . 1 1 Robot Analysis 1 | . 1 . Proto ID Catalog 1 | . . 1 Fabricator Hacks . | . . . Repair Station Hacks . | . . . Recycling Unit Hacks . | . . . Scanalyzer . | . . . Garrison Access Hacks . | . . . Unauthorized Hacks . | . . . Terminals . | . . . Fabricators . | . . . Repair Stations . | . . . Recycling Units . | . . . Scanalyzers . | . . . Garrison Access . | . . . Data Cores Recovered . | . . . Used . | . . . Hacking Detections 2 | . 2 . Full Trace Events . | . . . Feedback Events . | . . . Feedback Blocked . | . . . Robot Schematics Acquired . | . . . Robots Built . | . . . Authchips . | . . . Time . | . . . Total Robot Build Rating . | . . . Part Schematics Acquired . | . . . Parts Built . | . . . Authchips . | . . . Time . | . . . Total Part Build Rating . | . . . Parts Repaired . | . . . Time . | . . . Parts Recycled . | . . . Recycled Matter . | . . . Retrieved Matter . | . . . Retrieved Components . | . . . Parts Scanalyzed . | . . . Part Schematics Acquired . | . . . Parts Damaged . | . . . Bothacking | -11 -10 -10 ------------ Run | Yrd Mat Sub Used RIF Installer . | . . . Robots Hacked . | . . . Non-combat . | . . . Combat . | . . . Robot Hacks Applied . | . . . Relay Couplers Released . | . . . Fabnet Peak Effective % . | . . . Robots Rewired . | . . . Allies Hacked . | . . . Hacks Repelled . | . . . Allies | -11 -10 -10 -------- Run | Yrd Mat Sub Total Allies . | . . . Largest Group . | . . . Highest-Rated Group . | . . . Highest-Rated Ally . | . . . Total Orders . | . . . Ally Attacks . | . . . Total Damage . | . . . Kills . | . . . Allies Corrupted . | . . . Allies Melted . | . . . Intel | -11 -10 -10 ------- Run | Yrd Mat Sub Active Infowar (turns) 1356 | 18 921 417 Optics 118 | . . 118 Seismic 1238 | 18 921 299 Robot Analysis Total 1 | . 1 . Derelict Logs Recovered 1 | . . 1 Drone Launches . | . . . Drone Recoveries . | . . . Exploration | -11 -10 -10 ------------- Run | Yrd Mat Sub Turns Passed 2631 | 158 921 1552 Spaces Moved 1152 | 66 363 723 Core 9 | 4 . 5 Treads 734 | 62 301 371 Legs . | . . . Wheels 409 | . 62 347 Hover . | . . . Flight . | . . . Fastest Speed 50 | 50 160 80 Average Speed 185 | 153 193 184 Slowest Speed 1500 | 160 320 1500 Overloaded Moves . | . . . Propulsion Burnouts . | . . . Robots Hopped . | . . . Potential Cave-ins . | . . . Cave-ins Triggered . | . . . Exploration Rate (%) 38 | 7 64 43 Regions Visited 2 Branch Regions 1 Pre-discovered Areas 1 | . . 1 Known Exits Taken . | . . . Unknown Exits Taken 2 | 1 1 . Scrap Searched 7 | . . 7 Spaces Dug 5 | . 3 2 Terrain Destroyed 6 | . 3 3 Melee . | . . . Projectile 6 | . 3 3 AOE . | . . . Terrain Rammed . | . . . Walls Destroyed . | . . . Machines Disabled . | . . . Actions | -11 -10 -10 --------- Run | Yrd Mat Sub Total 1420 | 95 476 849 Wait 74 | 1 37 36 Move 1150 | 65 362 723 Hop . | . . . Pick Up 17 | 6 6 5 Fast Attach 13 | 7 . 6 Attach 4 | . 2 2 Detach 1 | . . 1 Swap 11 | 1 3 7 Drop 15 | . 3 12 Fire 130 | 15 63 52 Melee . | . . . Ram . | . . . Kick . | . . . Crush . | . . . Escape Stasis . | . . . Rewire . | . . . Trap . | . . . Miscellaneous 5 | . . 5 Route ------- -11/Scrapyard -10/Materials (discovered 4 exits: [*Mat x2] / [*Min] / *Sub) -10/Subcaves History --------- Turn | Location | Event 7 | -11/Scrapyard | Discovered new exit (range 15) 159 | -11/Scrapyard | Entered Materials 232 | -10/Materials | Discovered new exit (range 11) 314 | -10/Materials | Build established: Mutant 623 | -10/Materials | Discovered new exit (range 8) 816 | -10/Materials | Discovered new exit (range 14) 983 | -10/Materials | Discovered new exit (range 5) 991 | -10/Materials | Lost 3 parts (1p1n1w) 1080 | -10/Materials | Entered Subcaves 1080 | -10/Subcaves | Learned location of Storage (-7) 1081 | -10/Subcaves | Approached by a straggling Scientist 1223 | -10/Subcaves | Core integrity fell below 50% 1277 | -10/Subcaves | Lost 3 parts (1p1n1w) 1394 | -10/Subcaves | Disturbed a concealed Subdweller 1506 | -10/Subcaves | Visited 4L-MR0's lab 1670 | -10/Subcaves | Build established: Subdweller-Mutant 2244 | -10/Subcaves | Ambushed by Subdweller buried in earth 2259 | -10/Subcaves | Core integrity fell below 20% 2380 | -10/Subcaves | Shifting Twisted Machinery released Sub. Machine Gun 2396 | -10/Subcaves | Shifting Twisted Machinery released Sub. Optics 2621 | -10/Subcaves | Ambushed by Subdwellers from Twisted Machinery 2630 | -10/Subcaves | Build established: Mutant 2632 | -10/Subcaves | Destroyed by 4H-ZRC(R) with Subdweller Beam Cannon Last Messages --------------- 02327_ An expanding cloud of shrapnel blasts out in all directions. 02340_ Scrap Shield destroyed. 02341_ OW-34L(R) destroyed. 02344_ 7P-RO5(R) destroyed. 02348_ Acquired 4 matter. Sub. Machine Gun falls loose from the Twisted Machinery. Sub. Optics falls loose from the Twisted Machinery. 02396_ Dropped Mining Laser. 02399_ Acquired Sub. Machine Gun. 02450_ Dropped Sub. Machine Gun. 02514_ Acquired Sub. Optics. 02621_ SS-HCY(R) emerges from the Twisted Machinery. 02624_ Wheel destroyed. 02629_ Disposable Heat Sink melted. 02629_ Sub. Optics melted. 02629_ SS-HCY(R) destroyed. Map ----- +----------------------------------------------------+ | ?????????????????????????????????????????????????# | | ?????????????????????????????????????????????????# | | ?????????????????????????????????????????????????# | | ?????????????????????????????????????????????????# | | ?????????????????????????????????????????????????# | | ?????????????????????????????????????????????????# | | ?????????????????????????????????????????????????# | | ?????????????????????????????????????????????????# | | ???????????????????????????????????????????????### | | ???????????????????????????????????????????????# | | ??????????????????????? "##????????????????????## | | ???????????????????????" *#?????????????????????## | | ???????????????????????#"&#??????????????????????? | | ???????????????????????#"%#??????????????????????? | | ??????????????????????##R&##?????????????????????? | | ??????????????????????" = ##????????????????????? | | ?????????????????????? #????????????????????? | | ?????####?????????????# %##???????????????????? | | ???### #????????????## ##??????????????????? | | ??## #????????????# % #####??????????????? | | ??# #???????????## ##?????????????? | | ??# #???????????# % #?????????????? | | ##?# ###????####?# #?????????????? | | ### #??### ##?# #?????????????? | | ## #?## #?# #??????????????? | | ### ### @ #??????????????????? | | ## ;#?????????????????? | | ##?????????????????? | | ## ###??????????????????? | | ## ### #????????????????????? | | ## ## ##########?? #??????????????#????? | | ######???????????####??????????????# ?? | | ##?????????????????????????????????## #? | | #??????????????????????????????????# ? | | ##??????????????????????????????????# | | ##?####???????????????????????????????# | | ### #???????????????????????????????# | | # #???????????????????????????????# | | ### #????????????????????????????????# | | ?### #????????????????????????????????# | | ## # ####????????????????????????????????## | | ##????????????????????????????????????### | | ##???????????????????????????????????????# | | ###???????????????????????????????????????# | | ###?????????????????????????????????????????### | | #????????????????????????????????????????????# | | ##??????????????????????????????????????????## | | #?????????????????????????????????????????## | | ##???????????????????????????????????????## | | #??????????????????????????????????###### | +----------------------------------------------------+ Best States ------------- Heat Dissipation 25 Energy Generation 15 Energy Capacity 250 Matter Stores 300 Matter Capacity 300 Sight Range 21 Terrain Scan Density 10 Armor Coverage 800 Evasion (%) 40 Recoil Reduction 2 Item Schematics ----------------- None Robot Schematics ------------------ None Fabricated ------------ Nothing Repaired ---------- Nothing Alien Tech Used ----------------- None Achievements -------------- None Challenges ------------ None Game ------ Seed TransmissionBlastSteel Manual? 1 Play Time 00:25:35 Cumulative 205.9 hours Start 2025.05.16 @ 14:39:29 End 2025.05.16 @ 15:36:54 Sessions 1 Manual Loads 0 Difficulty Rogue Special Mode None Game No. 114 Rogue 106 Adventurer 8 Explorer 0 Win Type - Total 6 Types 2/0/2/1/0/0/0/0/0/1 Lore% 79 Gallery% 74 Achievement% 62 Wizard Run 0 Options --------- Layout 2 ASCII 0 Keyboard 1 Movement Numpad Keybinds 1 Fullscreen 1 Font 48/Smallcaps Map View 50x44 Zoom Use 0% Tactical HUD 1 Map Filters NONE Filters NONE Steam 1 RUN: dd0a8f1e-5a2f-42e0-be72-931aabd4eb37